Workbook

Sheet Лист1
B2: УТВЕРЖДАЮ: | G2: СОГЛАСОВАНО:
B3: Врио директор МБУ "Комбинат Юность" НМО | G3: Директор МБОУ СОШ № 5
B4: Герасимова Е.В. ______________ | G4: Терехова Ю.Ю. ______________
B5: 9 января 2025 год | G5: 9 января 2025 год
E7: ПРИМЕРНОЕ 10 дневное МЕНЮ
E8: Для учащихся 1-4 классов завтраки 94-00 и обеды 131-00 /зима/ 2025 год
G9: Пищевые ценность, гр
A10: № рецептуры | B10: Наименование блюда | C10: Вес блюда, гр | D10: Белки | E10: Жиры | F10: Угле воды | G10: Ca | H10: Mg | I10: Fe | J10: Витамин С | K10: Эн/ц (ккал)
B11: 1 день
B12: Завтрак
A13: 1//04 | B13: Бутерброд с маслом | C13: 20/40 | D13: 4.5 | E13: 15 | F13: 25.5 | G13: 14.2 | H13: 6.3 | I13: 0.6 | J13: 0 | K13: 223.6
A14: 416/94 | B14: Котлета из свинины | C14: 100 | D14: 11.1 | E14: 38.1 | F14: 16 | G14: 20 | H14: 21.7 | I14: 1.5 | J14: 0 | K14: 453.3
A15: 463/94 | B15: Каша гречневая | C15: 150 | D15: 8.7 | E15: 7.8 | F15: 42.6 | G15: 12 | H15: 35.6 | I15: 1.7 | J15: 0 | K15: 279
A16: 685/04 | B16: Чай с сахаром | C16: 200 | D16: 0.3 | E16: 0 | F16: 15 | G16: 12 | H16: 6 | I16: 0.8 | J16: 0.1 | K16: 57.9
A17: пром | B17: Хлеб ржаной и пшеничный витамин. | C17: 20/20 | D17: 1.6 | E17: 0.2 | F17: 9.3 | G17: 7 | H17: 8.3 | I17: 0.2 | J17: 0.3 | K17: 42.4
D18: 2.2 | E18: 0.3 | F18: 12.6 | G18: 4.7 | H18: 3.1 | I18: 0.3 | J18: 0.1 | K18: 45.8
C19: 550 | D19: =SUM(D13:D18) -> 28.4 | E19: =SUM(E13:E18) -> 61.4 | F19: =SUM(F13:F18) -> 121 | G19: =SUM(G13:G18) -> 69.9 | H19: =SUM(H13:H18) -> 81 | I19: =SUM(I13:I18) -> 5.1 | J19: =SUM(J14:J18) -> 0.5 | K19: =SUM(K13:K18) -> 1102
B20: Обед
A21: ттк | B21: Соленый огурец | C21: 60 | D21: 1.7 | E21: 0 | F21: 0.4 | G21: 13.8 | H21: 8.4 | I21: 0.4 | J21: 3 | K21: 9.6
A22: 138/94 | B22: Суп картофельный с бобовыми с говядиной | C22: 250/10 | D22: 9.3 | E22: 6.2 | F22: 22.3 | G22: 50.6 | H22: 49.6 | I22: 3.9 | J22: 8.8 | K22: 183.2
A23: 403/94 | B23: Плов из свинины | C23: 80/180 | D23: 29.9 | E23: 49.9 | F23: 42.5 | G23: 44.8 | H23: 30 | I23: 6.3 | J23: 2.8 | K23: 744.9
A24: 638/04 | B24: Компот из сухофруктов | C24: 200 | D24: 0.6 | E24: 0 | F24: 31.4 | G24: 19.9 | H24: 7.8 | I24: 0.4 | J24: 0.5 | K24: 124
A25: пром | B25: Хлеб ржаной и пшеничный витамин. | C25: 30/30 | D25: 2.3 | E25: 0.4 | F25: 14 | G25: 10.5 | H25: 12.5 | I25: 0.3 | J25: 0.5 | K25: 63.6
D26: 3.2 | E26: 0.4 | F26: 19 | G26: 7.1 | H26: 4.7 | I26: 0.5 | J26: 0.2 | K26: 68.7
C27: 840 | D27: =SUM(D21:D26) -> 47 | E27: =SUM(E25:E26) -> 0.8 | F27: =SUM(F21:F26) -> 129.6 | G27: =SUM(G21:G26) -> 146.7 | H27: =SUM(H21:H26) -> 113 | I27: =SUM(I21:I26) -> 11.8 | J27: =SUM(J21:J26) -> 15.8 | K27: =SUM(K21:K26) -> 1194
C28: =C19+C27 -> 1390 | D28: =D19+D27 -> 75.4 | E28: =E19+E27 -> 62.2 | F28: =F19+F27 -> 250.6 | G28: =G19+G27 -> 216.6 | H28: =H19+H27 -> 194 | I28: =I19+I27 -> 16.9 | J28: =J19+J27 -> 16.3 | K28: =K19+K27 -> 2296
B29: 2 день
B30: Завтрак
A31: пром | B31: Кисломолочный продукт (Йогурт) | C31: 125 | D31: 3.5 | E31: 3.1 | F31: 16.3 | G31: 120 | H31: 14 | I31: 0.1 | J31: 1.3 | K31: 107.1
A32: 35/03 | B32: Каша молочная «Дружба» с маслом | C32: 200/5 | D32: 7.2 | E32: 8.8 | F32: 44.6 | G32: 97.1 | H32: 19.8 | I32: 0.8 | J32: 1.3 | K32: 287
A33: 78/03 | B33: Ватрушка «Лакомка» | C33: 75 | D33: 7.8 | E33: 12.8 | F33: 29.5 | G33: 42.5 | H33: 0.8 | I33: 0.2 | J33: 0 | K33: 264
A34: 692/04 | B34: Кофейный напиток | C34: 200 | D34: 2.4 | E34: 1.6 | F34: 27.5 | G34: 36 | H34: 0 | I34: 0 | J34: 0.2 | K34: 134
A35: пром | B35: Хлеб ржаной и пшеничный витамин. | C35: 20/20 | D35: 1.6 | E35: 0.2 | F35: 9.3 | G35: 7 | H35: 8.3 | I35: 0.2 | J35: 0.3 | K35: 42.4
D36: 2.2 | E36: 0.3 | F36: 12.6 | G36: 4.7 | H36: 3.1 | I36: 0.3 | J36: 0.1 | K36: 45.8
C37: 645 | D37: =SUM(D31:D36) -> 24.7 | E37: =SUM(E31:E36) -> 26.8 | F37: =SUM(F31:F36) -> 139.8 | G37: =SUM(G31:G36) -> 307.3 | H37: =SUM(H31:H36) -> 46 | I37: =SUM(I31:I36) -> 1.6 | J37: =SUM(J31:J36) -> 3.2 | K37: =SUM(K31:K36) -> 880.3
B38: Обед
A39: 19//03 | B39: Салат из отв.картофеля с зеленым горошком | C39: 60 | D39: 1.2 | E39: 9.2 | F39: 6.4 | G39: 9.6 | H39: 11 | I39: 0.5 | J39: 1.9 | K39: 112.8
A40: 129/94 | B40: Рассольник «Ленинградский» с говядиной со сметаной | C40: 250/10/10 | D40: 6.4 | E40: 7.1 | F40: 20.4 | G40: 35.9 | H40: 36.4 | I40: 1.4 | J40: 12.8 | K40: 173.7
A41: 424/04 | B41: Поджарка из свинины | C41: 70/30 | D41: 12.4 | E41: 34.1 | F41: 5.4 | G41: 8.3 | H41: 30.6 | I41: 2.3 | J41: 2 | K41: 391.2
A42: 464/94 | B42: Макароны отварные | C42: 150 | D42: 5.3 | E42: 6.2 | F42: 35.3 | G42: 12.6 | H42: 6.6 | I42: 0.6 | J42: 0 | K42: 221
A43: 770//97 | B43: Компот из свежих яблок | C43: 200 | D43: 0.1 | E43: 0 | F43: 26.4 | G43: 30 | H43: 10 | I43: 2.4 | J43: 3.6 | K43: 102
A44: пром | B44: Хлеб ржаной и пшеничный витамин. | C44: 30/30 | D44: 2.3 | E44: 0.4 | F44: 14 | G44: 10.5 | H44: 12.5 | I44: 0.3 | J44: 0.5 | K44: 63.6
D45: 3.2 | E45: 0.4 | F45: 19 | G45: 7.1 | H45: 4.7 | I45: 0.5 | J45: 0.2 | K45: 68.7
C46: 840 | D46: =SUM(D39:D45) -> 30.9 | E46: =SUM(E39:E45) -> 57.4 | F46: =SUM(F39:F45) -> 126.9 | G46: =SUM(G39:G45) -> 114 | H46: =SUM(H39:H45) -> 111.8 | I46: =SUM(I39:I45) -> 8 | J46: =SUM(J39:J45) -> 21 | K46: =SUM(K39:K45) -> 1133
C47: =C37+C46 -> 1485 | D47: =D37+D46 -> 55.6 | E47: =E37+E46 -> 84.2 | F47: =F37+F46 -> 266.7 | G47: =G37+G46 -> 421.3 | H47: =H37+H46 -> 157.8 | I47: =I37+I46 -> 9.6 | J47: =J37+J46 -> 24.2 | K47: =K37+K46 -> 2013.3
B48: 3 день
B49: Завтрак
A50: 332/94 | B50: Тефтели из горбуши | C50: 100 | D50: 14 | E50: 8.9 | F50: 12.8 | G50: 55.8 | H50: 23.8 | I50: 0.6 | J50: 0.7 | K50: 188
A51: 472/94 | B51: Картофельное пюре | C51: 150 | D51: 3.2 | E51: 6.8 | F51: 21.9 | G51: 27 | H51: 20 | I51: 0.8 | J51: 3.8 | K51: 163.5
A52: 685/04 | B52: Чай с сахаром | C52: 200 | D52: 0.3 | E52: 0 | F52: 15 | G52: 12 | H52: 6 | I52: 0.8 | J52: 0.1 | K52: 57.9
A53: пром | B53: Хлеб ржаной и пшеничный витамин. | C53: 20/20 | D53: 1.6 | E53: 0.2 | F53: 9.3 | G53: 7 | H53: 8.3 | I53: 0.2 | J53: 0.3 | K53: 42.4
D54: 2.2 | E54: 0.3 | F54: 12.6 | G54: 4.7 | H54: 3.1 | I54: 0.3 | J54: 0.1 | K54: 45.8
C55: 490 | D55: 26.2 | E55: 93.3 | F55: 77.2 | G55: 143.3 | H55: 60.4 | I55: 2.9 | J55: 24.9 | K55: 648.7
B56: Обед
A57: 1//04 | B57: Бутерброд с маслом | C57: 15/30 | D57: 3.4 | E57: 11.3 | F57: 19.2 | G57: 10.9 | H57: 4.7 | I57: 0.5 | J57: 0 | K57: 167.7 | L57: *
A58: 110/94 | B58: Борщ из св. капусты с говядиной со сметаной | C58: 250/10/10 | D58: 5.3 | E58: 7.8 | F58: 13.4 | G58: 46.9 | H58: 28.9 | I58: 1.6 | J58: 7.4 | K58: 144.7
A59: 262/94 | B59: Каша молочная пшенная с маслом | C59: 200/5 | D59: 4.6 | E59: 6 | F59: 26.7 | G59: 28.2 | H59: 32.4 | I59: 1.1 | J59: 1.4 | K59: 181
A60: ттк | B60: Сдоба «Аппетитная» | C60: 75 | D60: 9.3 | E60: 7.2 | F60: 26.4 | G60: 18.8 | H60: 24.8 | I60: 1.5 | J60: 0 | K60: 184.5
A61: ттк | B61: Кисель витамин.. | C61: 200 | D61: 0 | E61: 0 | F61: 24 | G61: 16.1 | H61: 0.9 | I61: 0.1 | J61: 20.1 | K61: 95
A62: пром | B62: Хлеб ржаной и пшеничный витамин. | C62: 30/30 | D62: 2.3 | E62: 0.4 | F62: 14 | G62: 10.5 | H62: 12.5 | I62: 0.3 | J62: 0.5 | K62: 63.6
D63: 3.2 | E63: 0.4 | F63: 19 | G63: 7.1 | H63: 4.7 | I63: 0.5 | J63: 0.2 | K63: 68.7
C64: 855 | D64: =D57+D58+D59+D60+D61+D62+D63 -> 28.1 | E64: =E57+E58+E59+E60+E61+E62+E63 -> 33.1 | F64: =F57+F58+F59+F60+F61+F62+F63 -> 142.7 | G64: =G57+G58+G59+G60+G61+G62+G63 -> 138.5 | H64: =H57+H58+H59+H60+H61+H62+H63 -> 108.9 | I64: =I57+I58+I59+I60+I61+I62+I63 -> 5.6 | J64: =J57+J58+J59+J60+J61+J62+J63 -> 29.6 | K64: =K57+K58+K59+K60+K61+K62+K63 -> 905.2
C65: =C55+C64 -> 1345 | D65: =D55+D64 -> 54.3 | E65: =E55+E64 -> 126.4 | F65: =F55+F64 -> 219.9 | G65: =G55+G64 -> 281.8 | H65: =H55+H64 -> 169.3 | I65: =I55+I64 -> 8.5 | J65: =J55+J64 -> 54.5 | K65: =K55+K64 -> 1553.9
B66: 4 день
B67: Завтрак
A68: ттк | B68: Кукуруза консервир. | C68: 60 | D68: 0.5 | E68: 3.7 | F68: 1.4 | G68: 21 | H68: 7.8 | I68: 0.4 | J68: 5.3 | K68: 72.1
A69: 439/94 | B69: Кура отварная | C69: 100 | D69: 17.1 | E69: 17.2 | F69: 0 | G69: 23.1 | H69: 20 | I69: 1.1 | J69: 0.2 | K69: 223
A70: 463/94 | B70: Рис отварной | C70: 150 | D70: 3.8 | E70: 6.2 | F70: 38.6 | G70: 14 | H70: 13.1 | I70: 0.5 | J70: 0 | K70: 228
A71: 685/04 | B71: Чай с сахаром | C71: 200 | D71: 0.3 | E71: 0 | F71: 15 | G71: 12 | H71: 6 | I71: 0.8 | J71: 0.1 | K71: 57.9
A72: пром | B72: Хлеб ржаной и пшеничный витамин. | C72: 20/20 | D72: 1.6 | E72: 0.2 | F72: 9.3 | G72: 7 | H72: 8.3 | I72: 0.2 | J72: 0.3 | K72: 42.4
D73: 2.2 | E73: 0.3 | F73: 12.6 | G73: 4.7 | H73: 3.1 | I73: 0.3 | J73: 0.1 | K73: 45.8
C74: 550 | D74: =SUM(D68:D73) -> 25.5 | E74: =SUM(E68:E73) -> 27.6 | F74: =SUM(F68:F73) -> 76.9 | G74: =SUM(G68:G73) -> 81.8 | H74: =SUM(H68:H73) -> 58.3 | I74: =SUM(I68:I73) -> 3.3 | J74: =SUM(J68:J73) -> 6 | K74: =SUM(K68:K73) -> 669.2
B75: Обед
A76: 71/04 | B76: Винегрет овощной | C76: 60 | D76: 0.8 | E76: 6.1 | F76: 4.1 | G76: 27.4 | H76: 13.7 | I76: 0.6 | J76: 10.1 | K76: 74.4
A77: 212/97 | B77: Суп-пюре картофельный с курой и гренками | C77: 250/10/15 | D77: 7.4 | E77: 7.3 | F77: 33 | G77: 1.1 | H77: 52.8 | I77: 20.2 | J77: 8.3 | K77: 232.4
A78: 742/83 | B78: Кнели куриные | C78: 100 | D78: 19.1 | E78: 13.9 | F78: 6.8 | G78: 15.7 | H78: 9.2 | I78: 0.5 | J78: 0.5 | K78: 232
A79: 463/94 | B79: Каша гречневая | C79: 150 | D79: 8.7 | E79: 7.8 | F79: 42.6 | G79: 12 | H79: 35.6 | I79: 1.7 | J79: 0 | K79: 279
A80: 638/04 | B80: Компот из кураги | C80: 200 | D80: 1.2 | E80: 0 | F80: 31.6 | G80: 52.5 | H80: 30.5 | I80: 1.9 | J80: 0.5 | K80: 126
A81: пром | B81: Хлеб ржаной и пшеничный витамин. | C81: 30/30 | D81: 2.3 | E81: 0.4 | F81: 14 | G81: 10.5 | H81: 12.5 | I81: 0.3 | J81: 0.5 | K81: 63.6
D82: 3.2 | E82: 0.4 | F82: 19 | G82: 7.1 | H82: 4.7 | I82: 0.5 | J82: 0.2 | K82: 68.7
C83: 845 | D83: =SUM(D76:D82) -> 42.7 | E83: =SUM(E76:E82) -> 35.9 | F83: =SUM(F76:F82) -> 151.1 | G83: =SUM(G76:G82) -> 126.3 | H83: =SUM(H76:H82) -> 159 | I83: =SUM(I76:I82) -> 25.7 | J83: =SUM(J76:J82) -> 20.1 | K83: =SUM(K76:K82) -> 1076.1
C84: =C74+C83 -> 1395 | D84: =D74+D83 -> 68.2 | E84: =E74+E83 -> 63.5 | F84: =F74+F83 -> 228 | G84: =G74+G83 -> 208.1 | H84: =H74+H83 -> 217.3 | I84: =I74+I83 -> 29 | J84: =J74+J83 -> 26.1 | K84: =K74+K83 -> 1745.3
B85: 5 день
B86: Завтрак
A87: 424/04 | B87: Поджарка из свинины | C87: 70/30 | D87: 12.4 | E87: 34.1 | F87: 5.4 | G87: 8.3 | H87: 30.6 | I87: 2.3 | J87: 2 | K87: 391.2
A88: 464/94 | B88: Макароны отварные | C88: 150 | D88: 5.3 | E88: 6.2 | F88: 35.3 | G88: 12.6 | H88: 6.6 | I88: 0.6 | J88: 0 | K88: 221
A89: 685/04 | B89: Чай с сахаром | C89: 200 | D89: 0.3 | E89: 0 | F89: 15 | G89: 12 | H89: 6 | I89: 0.8 | J89: 0.1 | K89: 57.9
A90: пром | B90: Хлеб ржаной и пшеничный витамин. | C90: 20/20 | D90: 1.6 | E90: 0.2 | F90: 9.3 | G90: 7 | H90: 8.3 | I90: 0.2 | J90: 0.3 | K90: 42.4
D91: 2.2 | E91: 0.3 | F91: 12.6 | G91: 4.7 | H91: 3.1 | I91: 0.3 | J91: 0.1 | K91: 45.8
C92: 490 | D92: =SUM(D87:D91) -> 21.8 | E92: =SUM(E87:E91) -> 40.8 | F92: =SUM(F87:F91) -> 77.6 | G92: =SUM(G87:G91) -> 44.6 | H92: =SUM(H87:H91) -> 54.6 | I92: =SUM(I87:I91) -> 4.2 | J92: =SUM(J87:J91) -> 2.5 | K92: =SUM(K87:K91) -> 758.3
B93: Обед
A94: 62/97 | B94: Салат из св. капусты | C94: 60 | D94: 0.8 | E94: 4.9 | F94: 5.3 | G94: 32.9 | H94: 11 | I94: 0.7 | J94: 23.9 | K94: 52.8
A95: 132/94 | B95: Суп из овощей с говядиной со сметаной | C95: 250/10/10 | D95: 4.6 | E95: 6.3 | F95: 12.6 | G95: 176.4 | H95: 52.1 | I95: 0.5 | J95: 3.1 | K95: 123.7
A96: 324/94 | B96: Котлета из горбуши | C96: 100 | D96: 10.4 | E96: 1.9 | F96: 6.8 | G96: 55.8 | H96: 23.4 | I96: 0.6 | J96: 0.7 | K96: 85.9
A97: 541/04 | B97: Рагу овощное | C97: 150 | D97: 3.5 | E97: 7.7 | F97: 16.1 | G97: 85.5 | H97: 1.8 | I97: 18 | J97: 21.5 | K97: 145.5
A98: ттк | B98: Напиток витамин. | C98: 200 | D98: 0 | E98: 0 | F98: 19 | G98: 0 | H98: 0 | I98: 0 | J98: 20 | K98: 80
A99: пром | B99: Хлеб ржаной и пшеничный витамин. | C99: 30/30 | D99: 2.3 | E99: 0.4 | F99: 14 | G99: 10.5 | H99: 12.5 | I99: 0.3 | J99: 0.5 | K99: 63.6
D100: 3.2 | E100: 0.4 | F100: 19 | G100: 7.1 | H100: 4.7 | I100: 0.5 | J100: 0.2 | K100: 68.7
C101: 840 | D101: =SUM(D94:D100) -> 24.8 | E101: =SUM(E94:E100) -> 21.6 | F101: =SUM(F94:F100) -> 92.8 | G101: =SUM(G94:G100) -> 368.2 | H101: =SUM(H94:H100) -> 105.5 | I101: =SUM(I94:I100) -> 20.6 | J101: =SUM(J94:J100) -> 69.9 | K101: =SUM(K94:K100) -> 620.2
C102: =C92+C101 -> 1330 | D102: =D92+D101 -> 46.6 | E102: =E92+E101 -> 62.4 | F102: =F92+F101 -> 170.4 | G102: =G92+G101 -> 412.8 | H102: =H92+H101 -> 160.1 | I102: =I92+I101 -> 24.8 | J102: =J92+J101 -> 72.4 | K102: =K92+K101 -> 1378.5
B103: 6 день
B104: Завтрак
A105: ттк | B105: Яйцо вареное | C105: 60 | D105: 5.1 | E105: 4.6 | F105: 0.3 | G105: 24.8 | H105: 4.8 | I105: 1 | J105: 0 | K105: 63
A106: 424/04 | B106: Поджарка из свинины | C106: 70/30 | D106: 12.4 | E106: 34.1 | F106: 5.4 | G106: 8.3 | H106: 30.6 | I106: 2.3 | J106: 2 | K106: 391.2
A107: 463/94 | B107: Каша гречневая | C107: 150 | D107: 8.7 | E107: 7.8 | F107: 42.6 | G107: 12 | H107: 35.6 | I107: 1.7 | J107: 0 | K107: 279
A108: 685/04 | B108: Чай с сахаром | C108: 200 | D108: 0.3 | E108: 0 | F108: 15 | G108: 12 | H108: 6 | I108: 0.8 | J108: 0.1 | K108: 57.9
A109: пром | B109: Хлеб ржаной и пшеничный витамин. | C109: 20/20 | D109: 1.6 | E109: 0.2 | F109: 9.3 | G109: 7 | H109: 8.3 | I109: 0.2 | J109: 0.3 | K109: 42.4
D110: 2.2 | E110: 0.3 | F110: 12.6 | G110: 4.7 | H110: 3.1 | I110: 0.3 | J110: 0.1 | K110: 45.8
C111: 550 | D111: =SUM(D105:D110) -> 30.3 | E111: =SUM(E105:E110) -> 47 | F111: =SUM(F105:F110) -> 85.2 | G111: =SUM(G105:G110) -> 68.8 | H111: =SUM(H105:H110) -> 88.4 | I111: =SUM(I105:I110) -> 6.3 | J111: =SUM(J105:J110) -> 2.5 | K111: =SUM(K105:K110) -> 879.3
B112: Обед
A113: 1//04 | B113: Бутерброд с маслом | C113: 20/40 | D113: 4.5 | E113: 15 | F113: 25.5 | G113: 14.2 | H113: 6.3 | I113: 0.6 | J113: 0 | K113: 223.6
A114: 120/94 | B114: Щи из свежей капусты с говядиной со сметаной | C114: 250/10/10 | D114: 5.6 | E114: 7.5 | F114: 8.6 | G114: 60.7 | H114: 24.6 | I114: 1.2 | J114: 13.7 | K114: 123.7
A115: 416/94 | B115: Котлета из свинины | C115: 100 | D115: 11.1 | E115: 38.1 | F115: 16 | G115: 20 | H115: 21.7 | I115: 1.5 | J115: 0 | K115: 453.3
A116: 464/94 | B116: Макароны отварные | C116: 150 | D116: 5.3 | E116: 6.2 | F116: 35.3 | G116: 12.6 | H116: 6.6 | I116: 0.6 | J116: 0 | K116: 221
A117: 770//97 | B117: Компот из свежих яблок | C117: 200 | D117: 0.1 | E117: 0 | F117: 26.4 | G117: 30 | H117: 10 | I117: 2.4 | J117: 3.6 | K117: 102
A118: пром | B118: Хлеб ржаной и пшеничный витамин. | C118: 30/30 | D118: 2.3 | E118: 0.4 | F118: 14 | G118: 10.5 | H118: 12.5 | I118: 0.3 | J118: 0.5 | K118: 63.6
D119: 3.2 | E119: 0.4 | F119: 19 | G119: 7.1 | H119: 4.7 | I119: 0.5 | J119: 0.2 | K119: 68.7
C120: 840 | D120: =SUM(D113:D119) -> 32.1 | E120: =SUM(E113:E119) -> 67.6 | F120: =SUM(F113:F119) -> 144.8 | G120: 172.8 | H120: =SUM(H113:H119) -> 86.4 | I120: =SUM(I113:I119) -> 7.1 | J120: =SUM(J113:J119) -> 18 | K120: =SUM(K113:K119) -> 1255.9
C121: =C111+C120 -> 1390 | D121: =D111+D120 -> 62.4 | E121: =E111+E120 -> 114.6 | F121: =F111+F120 -> 230 | G121: =G111+G120 -> 241.6 | H121: =H111+H120 -> 174.8 | I121: =I111+I120 -> 13.4 | J121: =J111+J120 -> 20.5 | K121: =K111+K120 -> 2135.2
B122: 7 день
B123: Завтрак
A124: пром | B124: Кисломолочный продукт (Йогурт) | C124: 125 | D124: 3.5 | E124: 3.1 | F124: 16.3 | G124: 120 | H124: 14 | I124: 0.1 | J124: 1.3 | K124: 107.1
A125: 262/94 | B125: Каша молочная рисовая с маслом | C125: 200/5 | D125: 2.2 | E125: 4.9 | F125: 22.1 | G125: 122.3 | H125: 32.1 | I125: 0.5 | J125: 0.6 | K125: 143
A126: ттк | B126: Сдоба «Аппетитная» | C126: 75 | D126: 9.3 | E126: 7.2 | F126: 26.4 | G126: 18.8 | H126: 24.8 | I126: 1.5 | J126: 0 | K126: 184.5
A127: 685/04 | B127: Чай с сахаром | C127: 200 | D127: 0.3 | E127: 0 | F127: 15 | G127: 12 | H127: 6 | I127: 0.8 | J127: 0.1 | K127: 57.9
A128: пром | B128: Хлеб ржаной и пшеничный витамин. | C128: 20/20 | D128: 1.6 | E128: 0.2 | F128: 9.3 | G128: 7 | H128: 8.3 | I128: 0.2 | J128: 0.3 | K128: 42.4
D129: 2.2 | E129: 0.3 | F129: 12.6 | G129: 4.7 | H129: 3.1 | I129: 0.3 | J129: 0.1 | K129: 45.8
C130: 645 | D130: =SUM(D124:D129) -> 19.1 | E130: =SUM(E124:E129) -> 15.7 | F130: =SUM(F124:F129) -> 101.7 | G130: =SUM(G124:G129) -> 284.8 | H130: =SUM(H124:H129) -> 88.3 | I130: =SUM(I124:I129) -> 3.4 | J130: =SUM(J124:J129) -> 2.4 | K130: =SUM(K124:K129) -> 580.7
B131: Обед
A132: ттк | B132: Кукуруза консервир. | C132: 60 | D132: 0.5 | E132: 3.7 | F132: 1.4 | G132: 21 | H132: 7.8 | I132: 0.4 | J132: 5.3 | K132: 72.1
A133: 110/94 | B133: Борщ из св. капусты с говядиной со сметаной | C133: 250/10/10 | D133: 5.3 | E133: 7.8 | F133: 13.4 | G133: 46.9 | H133: 28.9 | I133: 1.6 | J133: 7.4 | K133: 144.7
A134: 324/94 | B134: Котлета из горбуши | C134: 100 | D134: 10.4 | E134: 1.9 | F134: 6.8 | G134: 55.8 | H134: 23.4 | I134: 0.6 | J134: 0.7 | K134: 85.9
A135: 472/94 | B135: Картофельное пюре | C135: 150 | D135: 3.2 | E135: 6.8 | F135: 21.9 | G135: 27 | H135: 20 | I135: 0.8 | J135: 3.8 | K135: 163.5
A136: 638/04 | B136: Компот из сухофруктов | C136: 200 | D136: 0.6 | E136: 0 | F136: 31.4 | G136: 19.9 | H136: 7.8 | I136: 0.4 | J136: 0.5 | K136: 124
A137: пром | B137: Хлеб ржаной и пшеничный витамин. | C137: 30/30 | D137: 2.3 | E137: 0.4 | F137: 14 | G137: 10.5 | H137: 12.5 | I137: 0.3 | J137: 0.5 | K137: 63.6
D138: 3.2 | E138: 0.4 | F138: 19 | G138: 7.1 | H138: 4.7 | I138: 0.5 | J138: 0.2 | K138: 68.7
C139: 840 | D139: =SUM(D132:D138) -> 25.5 | E139: =SUM(E132:E138) -> 21 | F139: =SUM(F132:F138) -> 107.9 | G139: =SUM(G132:G138) -> 188.2 | H139: =SUM(H132:H138) -> 105.1 | I139: =SUM(I132:I138) -> 4.6 | J139: =SUM(J132:J138) -> 18.4 | K139: =SUM(K132:K138) -> 722.5
C140: =C130+C139 -> 1485 | D140: =D130+D139 -> 44.6 | E140: =E130+E139 -> 36.7 | F140: =F130+F139 -> 209.6 | G140: =G130+G139 -> 473 | H140: =H130+H139 -> 193.4 | I140: =I130+I139 -> 8 | J140: =J130+J139 -> 20.8 | K140: =K130+K139 -> 1303.2
B141: 8 день
B142: Завтрак
A143: 403/94 | B143: Плов из свинины | C143: 80/180 | D143: 29.9 | E143: 49.9 | F143: 42.5 | G143: 44.8 | H143: 30 | I143: 6.3 | J143: 2.8 | K143: 744.9
A144: 692/04 | B144: Кофейный напиток | C144: 200 | D144: 2.4 | E144: 1.6 | F144: 27.5 | G144: 36 | H144: 0 | I144: 0 | J144: 0.2 | K144: 134
A145: пром | B145: Хлеб ржаной и пшеничный витамин. | C145: 20/20 | D145: 1.6 | E145: 0.2 | F145: 9.3 | G145: 7 | H145: 8.3 | I145: 0.2 | J145: 0.3 | K145: 42.4
D146: 2.2 | E146: 0.3 | F146: 12.6 | G146: 4.7 | H146: 3.1 | I146: 0.3 | J146: 0.1 | K146: 45.8
C147: 500 | D147: =SUM(D143:D146) -> 36.1 | E147: =SUM(E143:E146) -> 52 | F147: =SUM(F143:F146) -> 91.9 | G147: =SUM(G143:G146) -> 92.5 | H147: =SUM(H143:H146) -> 41.4 | I147: =SUM(I143:I146) -> 6.8 | J147: =SUM(J143:J146) -> 3.4 | K147: =SUM(K143:K146) -> 967.1
B148: Обед
A149: 62/97 | B149: Салат из св. капусты | C149: 60 | D149: 0.8 | E149: 4.9 | F149: 5.3 | G149: 32.9 | H149: 11 | I149: 0.7 | J149: 23.9 | K149: 52.8
A150: 212/97 | B150: Суп-пюре картофельный с говядиной и гренками | C150: 250/10/15 | D150: 8.9 | E150: 7 | F150: 33 | G150: 1.4 | H150: 53.2 | I150: 19.5 | J150: 8.3 | K150: 235.7
A151: 35/03 | B151: Каша молочная «Дружба» с маслом | C151: 200/5 | D151: 7.2 | E151: 8.8 | F151: 44.6 | G151: 97.1 | H151: 19.8 | I151: 0.8 | J151: 1.3 | K151: 287
A152: 78/03 | B152: Ватрушка «Лакомка» | C152: 75 | D152: 7.8 | E152: 12.8 | F152: 29.5 | G152: 42.5 | H152: 0.8 | I152: 0.2 | J152: 0 | K152: 264
A153: 642/94 | B153: Какао с молоком | C153: 200 | D153: 4.9 | E153: 5 | F153: 32.5 | G153: 48 | H153: 13 | I153: 0.6 | J153: 1.3 | K153: 190
A154: пром | B154: Хлеб ржаной и пшеничный витамин. | C154: 30/30 | D154: 2.3 | E154: 0.4 | F154: 14 | G154: 10.5 | H154: 12.5 | I154: 0.3 | J154: 0.5 | K154: 63.6
D155: 3.2 | E155: 0.4 | F155: 19 | G155: 7.1 | H155: 4.7 | I155: 0.5 | J155: 0.2 | K155: 68.7
C156: 875 | D156: =SUM(D149:D155) -> 35.1 | E156: =SUM(E149:E155) -> 39.3 | F156: =SUM(F149:F155) -> 177.9 | G156: =SUM(G149:G155) -> 239.5 | H156: =SUM(H149:H155) -> 115 | I156: =SUM(I149:I155) -> 22.6 | J156: =SUM(J149:J155) -> 35.5 | K156: =SUM(K149:K155) -> 1161.8
C157: =C147+C156 -> 1375 | D157: =D147+D156 -> 71.2 | E157: =E147+E156 -> 91.3 | F157: =F147+F156 -> 269.8 | G157: =G147+G156 -> 332 | H157: =H147+H156 -> 156.4 | I157: =I147+I156 -> 29.4 | J157: =J147+J156 -> 38.9 | K157: =K147+K156 -> 2128.9
B158: 9 день
B159: Завтрак
A160: 498/04 | B160: Котлета куриная | C160: 100 | D160: 18.6 | E160: 13.5 | F160: 18.2 | G160: 19.4 | H160: 89.2 | I160: 1.8 | J160: 1.7 | K160: 271
A161: 464/94 | B161: Макароны отварные | C161: 150 | D161: 5.3 | E161: 6.2 | F161: 35.3 | G161: 12.6 | H161: 6.6 | I161: 0.6 | J161: 0 | K161: 221
A162: ттк | B162: Кисель витамин.. | C162: 200 | D162: 0 | E162: 0 | F162: 24 | G162: 16.1 | H162: 0.9 | I162: 0.1 | J162: 20.1 | K162: 95
A163: пром | B163: Хлеб ржаной и пшеничный витамин. | C163: 20/20 | D163: 1.6 | E163: 0.2 | F163: 9.3 | G163: 7 | H163: 8.3 | I163: 0.2 | J163: 0.3 | K163: 42.4
D164: 2.2 | E164: 0.3 | F164: 12.6 | G164: 4.7 | H164: 3.1 | I164: 0.3 | J164: 0.1 | K164: 45.8
C165: 490 | D165: =SUM(D160:D164) -> 27.7 | E165: =SUM(E160:E164) -> 20.2 | F165: =SUM(F160:F164) -> 99.4 | G165: =SUM(G160:G164) -> 59.8 | H165: =SUM(H160:H164) -> 108.1 | I165: =SUM(I160:I164) -> 3 | J165: =SUM(J160:J164) -> 22.2 | K165: =SUM(K160:K164) -> 675.2
B166: Обед
A167: 19//03 | B167: Салат из отв.картофеля с зеленым горошком | C167: 60 | D167: 1.2 | E167: 9.2 | F167: 6.4 | G167: 9.6 | H167: 11 | I167: 0.5 | J167: 1.9 | K167: 112.8
A168: 132/94 | B168: Суп из овощей с курой со сметаной | C168: 250/10/10 | D168: 2.9 | E168: 6.6 | F168: 12.6 | G168: 176 | H168: 52.8 | I168: 0.2 | J168: 3.1 | K168: 120.4
A169: 439/94 | B169: Кура отварная | C169: 100 | D169: 17.1 | E169: 17.2 | F169: 0 | G169: 23.1 | H169: 20 | I169: 1.1 | J169: 0.2 | K169: 223
A170: 463/94 | B170: Каша гречневая | C170: 150 | D170: 8.7 | E170: 7.8 | F170: 42.6 | G170: 12 | H170: 35.6 | I170: 1.7 | J170: 0 | K170: 279
A171: 638/04 | B171: Компот из кураги | C171: 200 | D171: 1.2 | E171: 0 | F171: 31.6 | G171: 52.5 | H171: 30.5 | I171: 1.9 | J171: 0.5 | K171: 126
A172: пром | B172: Хлеб ржаной и пшеничный витамин. | C172: 30/30 | D172: 2.3 | E172: 0.4 | F172: 14 | G172: 10.5 | H172: 12.5 | I172: 0.3 | J172: 0.5 | K172: 63.6
D173: 3.2 | E173: 0.4 | F173: 19 | G173: 7.1 | H173: 4.7 | I173: 0.5 | J173: 0.2 | K173: 68.7
C174: 840 | D174: =SUM(D167:D173) -> 36.6 | E174: =SUM(E167:E173) -> 41.6 | F174: =SUM(F167:F173) -> 126.2 | G174: =SUM(G167:G173) -> 290.8 | H174: =SUM(H167:H173) -> 167.1 | I174: =SUM(I167:I173) -> 6.2 | J174: =SUM(J167:J173) -> 6.4 | K174: =SUM(K167:K173) -> 993.5
C175: =C165+C174 -> 1330 | D175: =D165+D174 -> 64.3 | E175: =E165+E174 -> 61.8 | F175: =F165+F174 -> 225.6 | G175: =G165+G174 -> 350.6 | H175: =H165+H174 -> 275.2 | I175: =I165+I174 -> 9.2 | J175: =J165+J174 -> 28.6 | K175: =K165+K174 -> 1668.7
B176: 10 день
B177: Завтрак
A178: 324/94 | B178: Котлета из горбуши | C178: 100 | D178: 10.4 | E178: 1.9 | F178: 6.8 | G178: 55.8 | H178: 23.4 | I178: 0.6 | J178: 0.7 | K178: 85.9
A179: 472/94 | B179: Картофельное пюре | C179: 150 | D179: 3.2 | E179: 6.8 | F179: 21.9 | G179: 27 | H179: 20 | I179: 0.8 | J179: 3.8 | K179: 163.5
A180: 685/04 | B180: Чай с сахаром | C180: 200 | D180: 0.3 | E180: 0 | F180: 15 | G180: 12 | H180: 6 | I180: 0.8 | J180: 0.1 | K180: 57.9
A181: пром | B181: Хлеб ржаной и пшеничный витамин. | C181: 20/20 | D181: 1.6 | E181: 0.2 | F181: 9.3 | G181: 7 | H181: 8.3 | I181: 0.2 | J181: 0.3 | K181: 42.4
D182: 2.2 | E182: 0.3 | F182: 12.6 | G182: 4.7 | H182: 3.1 | I182: 0.3 | J182: 0.1 | K182: 45.8
C183: 490 | D183: =SUM(D178:D182) -> 17.7 | E183: =SUM(E178:E182) -> 9.2 | F183: =SUM(F178:F182) -> 65.6 | G183: =SUM(G178:G182) -> 106.5 | H183: =SUM(H178:H182) -> 60.8 | I183: =SUM(I178:I182) -> 2.7 | J183: =SUM(J178:J182) -> 5 | K183: =SUM(K178:K182) -> 395.5
B184: Обед
A185: ттк | B185: Яйцо вареное | C185: 60 | D185: 5.1 | E185: 4.6 | F185: 0.3 | G185: 24.8 | H185: 4.8 | I185: 1 | J185: 0 | K185: 63
A186: 151/94 | B186: Суп-лапша домашняя с говядиной | C186: 250/10 | D186: 5.9 | E186: 6.4 | F186: 13.9 | G186: 32.7 | H186: 11.6 | I186: 1.5 | J186: 0.6 | K186: 137.7
A187: 424/04 | B187: Поджарка из свинины | C187: 70/30 | D187: 12.4 | E187: 34.1 | F187: 5.4 | G187: 8.3 | H187: 30.6 | I187: 2.3 | J187: 2 | K187: 391.2
A188: 463/94 | B188: Рис отварной | C188: 150 | D188: 3.8 | E188: 6.2 | F188: 38.6 | G188: 14 | H188: 13.1 | I188: 0.5 | J188: 0 | K188: 228
A189: ттк | B189: Напиток витамин. | C189: 200 | D189: 0 | E189: 0 | F189: 19 | G189: 0 | H189: 0 | I189: 0 | J189: 20 | K189: 80
A190: пром | B190: Хлеб ржаной и пшеничный витамин. | C190: 30/30 | D190: 2.3 | E190: 0.4 | F190: 14 | G190: 10.5 | H190: 12.5 | I190: 0.3 | J190: 0.5 | K190: 63.6
D191: 3.2 | E191: 0.4 | F191: 19 | G191: 7.1 | H191: 4.7 | I191: 0.5 | J191: 0.2 | K191: 68.7
C192: 830 | D192: =SUM(D185:D191) -> 32.7 | E192: =SUM(E185:E191) -> 52.1 | F192: =SUM(F185:F191) -> 110.2 | G192: =SUM(G185:G191) -> 97.4 | H192: =SUM(H185:H191) -> 77.3 | I192: =SUM(I185:I191) -> 6.1 | J192: =SUM(J185:J191) -> 23.3 | K192: =SUM(K185:K191) -> 1032.2
C193: =C183+C192 -> 1320 | D193: =D183+D192 -> 50.4 | E193: =E183+E192 -> 61.3 | F193: =F183+F192 -> 175.8 | G193: =G183+G192 -> 203.9 | H193: =H183+H192 -> 138.1 | I193: =I183+I192 -> 8.8 | J193: =J183+J192 -> 28.3 | K193: =K183+K192 -> 1427.7
B194: Общее за 10 дней: | C194: =C28+C47+C65+C84+C102+C121+C140+C157+C175+C193 -> 13845 | D194: =D195+D196 -> 593 | E194: =E195+E196 -> 764.4 | F194: =F195+F196 -> 2246.4 | G194: =G195+G196 -> 3141.7 | H194: =H195+H196 -> 1836.4 | I194: =I195+I196 -> 157.6 | J194: =J195+J196 -> 330.6 | K194: =K195+K196 -> 17650.7
B195: Завтраки за 10 дней: | C195: =C19+C37+C55+C74+C92+C111+C130+C147+C165+C183 -> 5400 | D195: =D19+D37+D55+D74+D92+D111+D130+D147+D165+D183 -> 257.5 | E195: =E19+E37+E55+E74+E92+E111+E130+E147+E165+E183 -> 394 | F195: =F19+F37+F55+F74+F92+F111+F130+F147+F165+F183 -> 936.3 | G195: =G19+G37+G55+G74+G92+G111+G130+G147+G165+G183 -> 1259.3 | H195: =H19+H37+H55+H74+H92+H111+H130+H147+H165+H183 -> 687.3 | I195: =I19+I37+I55+I74+I92+I111+I130+I147+I165+I183 -> 39.3 | J195: =J19+J37+J55+J74+J92+J111+J130+J147+J165+J183 -> 72.6 | K195: =K19+K37+K55+K74+K92+K111+K130+K147+K165+K183 -> 7556.3
B196: Обеды за 10 дней: | C196: =C27+C46+C64+C83+C101+C120+C139+C156+C174+C192 -> 8445 | D196: =D27+D46+D64+D83+D101+D120+D139+D156+D174+D192 -> 335.5 | E196: =E27+E46+E64+E83+E101+E120+E139+E156+E174+E192 -> 370.4 | F196: =F27+F46+F64+F83+F101+F120+F139+F156+F174+F192 -> 1310.1 | G196: =G27+G46+G64+G83+G101+G120+G139+G156+G174+G192 -> 1882.4 | H196: =H27+H46+H64+H83+H101+H120+H139+H156+H174+H192 -> 1149.1 | I196: =I27+I46+I64+I83+I101+I120+I139+I156+I174+I192 -> 118.3 | J196: =J27+J46+J64+J83+J101+J120+J139+J156+J174+J192 -> 258 | K196: =K27+K46+K64+K83+K101+K120+K139+K156+K174+K192 -> 10094.4
B197: Среднее за 10 дней: | C197: =C194/10 -> 1384.5 | D197: =D194/10 -> 59.3 | E197: =E194/10 -> 76.44 | F197: =F194/10 -> 224.64 | G197: =G194/10 -> 314.17 | H197: =H194/10 -> 183.64 | I197: =I194/10 -> 15.76 | J197: =J194/10 -> 33.06 | K197: =K194/10 -> 1765.07
A198: */Допускается замена одного вида пищевой продукции, блюд и кулинарных изделий на иные,
D199: согласно приложения № 11 к СанПиН 2.3/2.4.3590-20
